Workbook

Sheet SĀKUMS
B1: PAR ŠO VEIDNI
B2: Reģistrējiet sākotnējos ieguldījumus tīmekļa vietnē, tās sniegtos ieguvumi un izmaksas, izmantojot šo tīmekļa vietnes budžeta rīks.
B3: Ievadiet uzņēmuma nosaukums un datums.
B4: Ievadiet datus tabulās, lai automātiski aprēķinātu kopā un novērtēšanas rādītāji.
B5: Piezīme.
B6: Papildu norādījumi ir sniegti darblapas BUDŽETA RĪKS kolonnā A. Šis teksts ir paslēpts ar nolūku. Lai tekstu noņemtu, atlasiet kolonnu A, pēc tam atlasiet DZĒST. Lai parādītu slēpto tekstu, atlasiet kolonnu A, pēc tam nomainiet fonta krāsu.
B7: Lai iegūtu papildinformāciju par tabulām darblapā, nospiediet taustiņu SHIFT un pēc tam F10 tabulā, atlasiet opciju TABULA un pēc tam atlasiet ALTERNATĪVAIS TEKSTS.

Sheet BUDŽETA RĪKS
A1: Šajā darblapā izveidojiet tīmekļa vietnes budžetu. Šīs kolonnas šūnās ir noderīgi norādījumi par to, kā lietot šo darblapu. Bultiņa uz leju, lai sāktu darbu.
A2: Šūnā pa labi ievadiet uzņēmuma nosaukums. | B2: Uzņēmuma nosaukums
A3: Šīs darblapas nosaukums ir šūnā pa labi. | B3: Tīmekļa vietnes budžeta rīks
A4: Šūnā pa labi ievadiet datums. | B4: Datums
A5: Šūnā pa labi ir padoms. | B5: Pelēkajās šūnās ir aprēķini, kas nav jāmaina.
A6: Sākot no šūnas pa labi, likme tabulā ievadiet detalizētu informāciju. Nākamais norādījums ir šūnā A10. | B6: Uzņēmuma dati | C6: Likme
B7: Nepieciešamā peļņas norma | C7: 10%
B8: Nodokļu likme | C8: 30%
A10: Sākot no šūnas pa labi, sākotnējie ieguldījumi tabulā ievadiet detalizētu informāciju. Nākamais norādījums ir šūnā A16. | B10: Sākotnējie ieguldījumi tīmekļa vietnē | C10: GADS | D10: 1 | E10: 2 | F10: 3
B11: Aparatūra (piemēram, serveri) | C11: 25,000.00 EUR
B12: Programmatūra (piemēram, e-tirdzniecības kataloga programmatūra) | C12: 15,000.00 EUR
B13: Izstrāde (piemēram, trešās puses nodrošināts vietnes noformējums un izstrāde) | C13: 150,000.00 EUR
B14: Sākotnējo ieguldījumu kopsumma | C14: =SUBTOTAL(109,Sākotnējie_ieguldījumi[GADS]) -> 190,000.00 EUR
A16: Sākot no šūnas pa labi, ieguvumi tabulā ievadiet detalizētu informāciju. Nākamais norādījums ir šūnā A24. | B16: Ieguvumi no tīmekļa vietnes | C16: GADS | D16: 1 | E16: 2 | F16: 3
B17: Tiešā pārdošana | D17: 15,000.00 EUR | E17: 50,000.00 EUR | F17: 75,000.00 EUR
B18: Pakāpenisks pārdošanas apjoma pieaugums, ko izraisa uzlabota reklāmas/pārdošanas personāla darba efektivitāte | D18: 25,000.00 EUR | E18: 25,000.00 EUR | F18: 25,000.00 EUR
B19: Pakāpenisks pārdošanas apjoma pieaugums, ko izraisa paaugstināta partneru iesaistīšanās pakāpe | D19: 25,000.00 EUR | E19: 25,000.00 EUR | F19: 25,000.00 EUR
B20: Samazinātas ceļošanas izmaksas | D20: 25,000.00 EUR | E20: 25,000.00 EUR | F20: 25,000.00 EUR
B21: Samazinātas klientu apkalpošanas izmaksas | D21: 50,000.00 EUR | E21: 50,000.00 EUR | F21: 50,000.00 EUR
B22: Ieguvumu kopsumma | D22: =SUBTOTAL(109,Ieguvumi[1]) -> 140,000.00 EUR | E22: =SUBTOTAL(109,Ieguvumi[2]) -> 175,000.00 EUR | F22: =SUBTOTAL(109,Ieguvumi[3]) -> 200,000.00 EUR
A24: Sākot no šūnas pa labi, izmaksas tabulā ievadiet detalizētu informāciju. Vērtības tiek automātiski aprēķinātas šūnās ar formulām. Nākamais norādījums ir šūnā A32. | B24: Izmaksas (izņemot sākotnējos kapitālieguldījumus) | C24: GADS | D24: 1 | E24: 2 | F24: 3
B25: Pārdošanas izmaksas | D25: 7,500.00 EUR | E25: 25,000.00 EUR | F25: 37,500.00 EUR
B26: Uzturēšana | D26: 15,000.00 EUR | E26: 15,000.00 EUR | F26: 15,000.00 EUR
B27: Projektu pārvaldība, klientu atbalsts | D27: 35,000.00 EUR | E27: 35,000.00 EUR | F27: 35,000.00 EUR
B28: Tiešsaistes reklāmas, reģistrācija meklēšanas programmās | D28: 10,000.00 EUR | E28: 10,000.00 EUR | F28: 10,000.00 EUR
B29: Kapitālieguldījumu amortizācija (aprēķinos tiek izmantots trīs gadu periods) | D29: =Sākotnējie_ieguldījumi[[#Totals],[GADS]]/3 -> 63,333.33 EUR | E29: =Sākotnējie_ieguldījumi[[#Totals],[GADS]]/3 -> 63,333.33 EUR | F29: =Sākotnējie_ieguldījumi[[#Totals],[GADS]]/3 -> 63,333.33 EUR
B30: Kopējās izmaksas | D30: =SUBTOTAL(109,Izmaksas[1]) -> 130,833.33 EUR | E30: =SUBTOTAL(109,Izmaksas[2]) -> 148,333.33 EUR | F30: =SUBTOTAL(109,Izmaksas[3]) -> 160,833.33 EUR
A32: Vērtības tiek automātiski aprēķinātas tabulā Kopā, sākot ar šūnu pa labi. Nākamais norādījums ir šūnā A40. | B32: Kopā | C32: GADS | D32: 1 | E32: 2 | F32: 3
B33: Neto ieguvumi (izmaksas) | D33: =Ieguvumi[[#Totals],[1]]-Izmaksas[[#Totals],[1]] -> 9,166.67 EUR | E33: =Ieguvumi[[#Totals],[2]]-Izmaksas[[#Totals],[2]] -> 26,666.67 EUR | F33: =Ieguvumi[[#Totals],[3]]-Izmaksas[[#Totals],[3]] -> 39,166.67 EUR
B34: Nodokļi | D34: =D33*Nodokļa_likme -> 2,750.00 EUR | E34: =E33*Nodokļa_likme -> 8,000.00 EUR | F34: =F33*Nodokļa_likme -> 11,750.00 EUR
B35: Vērtība pēc nodokļiem | D35: =D33-D34 -> 6,416.67 EUR | E35: 18,666.67 EUR | F35: 27,416.67 EUR
B36: Nolietojums pievienots atpakaļ | D36: =D29 -> 63,333.33 EUR | E36: =E29 -> 63,333.33 EUR | F36: =F29 -> 63,333.33 EUR
B37: Naudas plūsma | C37: =-Sākotnējie_ieguldījumi[[#Totals],[GADS]] -> -190,000.00 EUR | D37: =D35+D36 -> 69,750.00 EUR | E37: 82,000.00 EUR | F37: 90,750.00 EUR
B38: Kumulatīvā naudas plūsma | C38: =C37 -> -190,000.00 EUR | D38: =C38+D37 -> -120,250.00 EUR | E38: -38,250.00 EUR | F38: 52,500.00 EUR
A40: Novērtēšanas rādītāji tiek automātiski aprēķināti tabulā Rādītāji, sākot ar šūnu pa labi. | B40: Novērtēšanas rādītāji | C40: Vērtības
B41: Pašreizējā neto vērtība (NPV) | C41: =C37+(NPV(ROR,D37:F37)) -> 9,359.50 EUR
B42: Iekšējās atdeves koeficients (IRR) | C42: =IRR(C37:F37) -> 12.66%
B43: Atmaksas periods (gados) | C43: =IF(F38<=0,"Pārsniedz 3 gadus",IF(E38<=0,(F37-F38)/F37+2,IF(D38<=0,(E37-E38)/E37+1,IF(C38<=0,(D37-D38)/D37,"Nav datu")))) -> 2.42
